fUST/lending_fUST_20240813
["ID","MTS","AMOUNT","RATE_DAILY","PERIOD"]
[334765156,1723537860139,-500.0,0.0001452,2]
[334765158,1723537860149,-500.0,0.0001452,2]
[334765160,1723537860159,-514.93,0.0001452,2]
[334765162,1723537860169,-1273.33,0.0001452,2]
[334765164,1723537860178,-500.0,0.0001452,2]
[334765166,1723537860188,-500.0,0.0001452,2]
[334765168,1723537860198,-1201.39,0.0001452,2]
[334765170,1723537860207,-500.0,0.0001452,2]
[334765172,1723537860217,-500.0,0.0001452,2]
[334765174,1723537860227,-500.0,0.0001452,2]
[334765189,1723537860236,-830.32,0.0001452,2]
[334765191,1723537860390,-500.0,0.0001452,2]
[334765193,1723537860400,-545.21,0.0001452,2]
[334765195,1723537860410,-1884.12,0.0001452,2]
[334765197,1723537860421,-500.0,0.0001452,2]
[334765199,1723537860430,-743.92,0.0001452,2]
[334765201,1723537860440,-500.0,0.0001452,2]
[334765202,1723537860449,-824.42,0.0001452,2]
[334765204,1723537860458,-500.0,0.0001452,2]
[334765206,1723537860468,-284.30155513,0.0001452,2]
[334765208,1723537860478,-500.0,0.0001452,2]
[334765210,1723537860488,-958.8,0.0001452,2]
[334765212,1723537860497,-500.0,0.0001452,2]
[334765214,1723537860507,-500.0,0.0001452,2]
[334765216,1723537860517,-500.0,0.0001452,2]
[334765218,1723537860527,-625.11,0.0001452,2]
[334765220,1723537860536,-500.0,0.0001452,2]
[334765222,1723537860546,-995.56,0.0001452,2]
[334765224,1723537860555,-507.11683935,0.0001452,2]
[334765226,1723537860565,-200.34955745,0.0001452,2]
[334765228,1723537860578,-500.0,0.0001452,2]
[334765230,1723537860587,-500.0,0.0001452,2]
[334765232,1723537860596,-831.7,0.0001452,2]
[334765234,1723537860606,-919.48,0.0001452,2]
[334765236,1723537860617,-500.0,0.0001452,2]
[334765238,1723537860628,-500.0,0.0001452,2]
[334765240,1723537860638,-680.9,0.0001452,2]
[334765242,1723537860647,-500.0,0.0001452,2]
[334765244,1723537860657,-702.43,0.0001452,2]
[334765246,1723537860667,-500.0,0.0001452,2]
[334765247,1723537860677,-809.2,0.0001452,2]
[334765248,1723537860688,-500.0,0.0001452,2]
[334765249,1723537860698,-500.0,0.0001452,2]
[334765250,1723537860708,-500.0,0.0001452,2]
[334765251,1723537860718,-500.0,0.0001452,2]
[334765252,1723537860727,-4378.29,0.0001452,2]
[334765253,1723537860737,-500.0,0.0001452,2]
[334765255,1723537860747,-500.0,0.0001452,2]
[334765257,1723537860756,-1134.62,0.0001452,2]
[334765259,1723537860766,-2261.14,0.0001452,2]
[334765261,1723537860775,-500.0,0.0001452,2]
[334765263,1723537860785,-1505.01,0.0001452,2]
[334765265,1723537860794,-500.0,0.0001452,2]
[334765267,1723537860804,-252.32921421,0.0001452,2]
[334765269,1723537860813,-500.0,0.0001452,2]
[334765271,1723537860825,-639.48,0.0001452,2]
[334765273,1723537860835,-500.0,0.0001452,2]
[334765275,1723537860845,-1583.11,0.0001452,2]
[334765277,1723537860854,-917.9,0.0001452,2]
[334765279,1723537860865,-527.13,0.0001452,2]
[334765281,1723537860874,-535.96770935,0.0001452,2]
[334765283,1723537860883,-1585.62,0.0001452,2]
[334765285,1723537860893,-500.0,0.0001452,2]
[334765287,1723537860902,-500.0,0.0001452,2]
[334765288,1723537860911,-976.77,0.0001452,2]
[334765291,1723537860922,-500.0,0.0001452,2]
[334765293,1723537860932,-1734.21,0.0001452,2]
[334765295,1723537860941,-500.0,0.0001452,2]
[334765296,1723537860951,-500.0,0.0001452,2]
[334765299,1723537860961,-1315.3,0.0001452,2]
[334765301,1723537860970,-500.0,0.0001452,2]
[334765303,1723537860980,-500.0,0.0001452,2]
[334765305,1723537860990,-500.0,0.0001452,2]
[334765307,1723537860999,-7367.39,0.0001452,2]
[334765309,1723537861009,-500.0,0.0001452,2]
[334765311,1723537861018,-595.3,0.0001452,2]
[334765313,1723537861028,-995.73,0.0001452,2]
[334765315,1723537861037,-1924.78,0.0001452,2]
[334765316,1723537861047,-2441.51,0.0001452,2]
[334765318,1723537861056,-500.0,0.0001452,2]
[334765320,1723537861065,-504.64,0.0001452,2]
[334765322,1723537861077,-500.0,0.0001452,2]
[334765324,1723537861086,-1026.0,0.0001452,2]
[334765326,1723537861096,-1372.19,0.0001452,2]
[334765328,1723537861106,-500.0,0.0001452,2]
[334765330,1723537861116,-825.12,0.0001452,2]
[334765333,1723537861126,-1218.76,0.0001452,2]
[334765334,1723537861136,-506.44736509,0.0001452,2]
[334765337,1723537861147,-357.60710396,0.0001452,2]
[334765339,1723537861156,-2009.64,0.0001452,2]
[334765341,1723537861166,-500.0,0.0001452,2]
[334765343,1723537861176,-5418.04,0.0001452,2]
[334765345,1723537861187,-666.76,0.0001452,2]
[334765347,1723537861197,-1515.4,0.0001452,2]
[334765349,1723537861207,-7239.45,0.0001452,2]
[334765351,1723537861217,-500.0,0.0001452,2]
[334765353,1723537861227,-1080.56,0.0001452,2]
[334765355,1723537861236,-1487.36,0.0001452,2]
[334765357,1723537861246,-770.77,0.0001452,2]
[334765359,1723537861256,-500.0,0.0001452,2]
[334765361,1723537861267,-3754.47,0.0001452,2]
[334765363,1723537861276,-500.0,0.0001452,2]
[334765365,1723537861285,-3930.98,0.0001452,2]
[334765366,1723537861297,-584.06,0.0001452,2]
[334765369,1723537861308,-1323.5,0.0001452,2]
[334765370,1723537861318,-500.0,0.0001452,2]
[334765372,1723537861335,-500.0,0.0001452,2]
[334765374,1723537861345,-500.0,0.0001452,2]
[334765376,1723537861353,-1224.27,0.0001452,2]
[334765379,1723537861364,-580.42,0.0001452,2]
[334765381,1723537861374,-882.99,0.0001452,2]
[334765383,1723537861384,-500.0,0.0001452,2]
[334765385,1723537861394,-500.0,0.0001452,2]
[334765387,1723537861403,-1100.34,0.0001452,2]
[334765388,1723537861412,-4193.53,0.0001452,2]
[334765391,1723537861423,-523.39,0.0001452,2]
[334765393,1723537861433,-754.54,0.0001452,2]
[334765395,1723537861443,-533.66,0.0001452,2]
[334765397,1723537861453,-775.85,0.0001452,2]
[334765399,1723537861462,-569.0,0.0001452,2]
[334765401,1723537861472,-500.0,0.0001452,2]
[334765403,1723537861482,-504.75071887,0.0001452,2]
[334765405,1723537861492,-1506.12,0.0001452,2]
[334765407,1723537861502,-1002.51,0.0001452,2]
[334765409,1723537861511,-500.0,0.0001452,2]
[334765411,1723537861521,-500.0,0.0001452,2]
[334765413,1723537861531,-500.0,0.0001452,2]
[334765415,1723537861541,-500.0,0.0001452,2]
[334765417,1723537861550,-500.0,0.0001452,2]
[334765419,1723537861560,-367.40460066,0.0001452,2]
[334765421,1723537861571,-852.94,0.0001452,2]
[334765424,1723537861581,-500.0,0.0001452,2]
[334765426,1723537861592,-500.0,0.0001452,2]
[334765428,1723537861602,-153.0,0.00014521,2]
[334765430,1723537861611,-153.0,0.00014521,2]
[334765432,1723537861620,-153.0,0.00014521,2]
[334765434,1723537861631,-153.0,0.00014521,2]
[334765436,1723537861642,-153.0,0.00014521,2]
[334765438,1723537861654,-153.0,0.00014521,2]
[334765441,1723537861665,-153.0,0.00014521,2]
[334765443,1723537861675,-153.0,0.00014521,2]
[334765445,1723537861684,-687.00046972,0.0001469,2]
[334765447,1723537861693,-1092.74671806,0.0001469,2]
[334765449,1723537861703,-154.82996095,0.0001469,2]
[334765451,1723537861712,-154.76012181,0.0001469,2]
[334765452,1723537861721,-194.79981105,0.0001469,2]
[334765454,1723537861732,-1364.96489753,0.0001469,2]
[334765456,1723537861741,-604.81,0.00014709,7]
[334765458,1723537861750,-500.0,0.00014794,2]
[334765460,1723537861760,-500.0,0.00014794,2]
[334765462,1723537861769,-1385.23,0.00014794,2]
[334765464,1723537861779,-660.55,0.00014794,2]
[334765466,1723537861788,-500.0,0.00014794,2]
[334765468,1723537861798,-500.0,0.00014794,2]
[334765470,1723537861807,-179.66511161,0.00014794,2]
[334765473,1723537861817,-500.0,0.00014794,2]
[334765475,1723537861829,-500.0,0.00014794,2]
[334765477,1723537861839,-500.0,0.00014794,2]
[334765478,1723537861848,-500.0,0.00014794,2]
[334765480,1723537861857,-500.0,0.00014794,2]
[334765482,1723537861866,-1882.69,0.00014794,2]
[334765484,1723537861876,-500.0,0.00014794,2]
[334765486,1723537861885,-500.0,0.00014794,2]
[334765488,1723537861895,-531.46,0.00014794,2]
[334765490,1723537861905,-640.71,0.00014794,2]
[334765492,1723537861914,-510.75474514,0.00014794,2]
[334765495,1723537861925,-500.0,0.00014794,2]
[334765497,1723537861935,-500.0,0.00014794,2]
[334765499,1723537861944,-500.0,0.00014794,2]
[334765501,1723537861954,-500.0,0.00014794,2]
[334765503,1723537861964,-500.0,0.00014794,2]
[334765505,1723537861974,-500.0,0.00014794,2]
[334765507,1723537861984,-500.0,0.00014794,2]
[334765509,1723537861993,-1230.34,0.00014794,2]
[334765511,1723537862003,-500.0,0.00014794,2]
[334765513,1723537862013,-737.09,0.00014794,2]
[334765515,1723537862022,-925.78,0.00014794,2]
[334765517,1723537862031,-564.05,0.00014794,2]
[334765519,1723537862041,-500.0,0.00014794,2]
[334765521,1723537862052,-500.0,0.00014794,2]
[334765524,1723537862062,-500.0,0.00014794,2]
[334765526,1723537862073,-500.0,0.00014794,2]
[334765528,1723537862082,-500.0,0.00014794,2]
[334765530,1723537862092,-546.14,0.00014794,2]
[334765532,1723537862102,-603.57,0.00014794,2]
[334765534,1723537862112,-500.0,0.00014794,2]
[334765536,1723537862122,-507.38404864,0.00014794,2]
[334765538,1723537862131,-875.25,0.00014794,2]
[334765540,1723537862140,-500.0,0.00014794,2]
[334765542,1723537862150,-627.62,0.00014794,2]
[334765544,1723537862159,-500.0,0.00014794,2]
[334765546,1723537862168,-909.82,0.00014794,2]
[334765548,1723537862178,-506.10342775,0.00014794,2]
[334765550,1723537862187,-860.2,0.00014794,2]
[334765552,1723537862196,-548.31,0.00014794,2]
[334765554,1723537862206,-656.8,0.00014794,2]
[334765556,1723537862215,-500.0,0.00014794,2]
[334765558,1723537862225,-797.5,0.00014794,2]
[334765560,1723537862235,-500.0,0.00014794,2]
[334765562,1723537862245,-500.0,0.00014794,2]
[334765564,1723537862254,-500.0,0.00014794,2]
[334765567,1723537862264,-500.0,0.00014794,2]
[334765568,1723537862273,-500.0,0.00014794,2]
[334765570,1723537862282,-786.49,0.00014794,2]
[334765573,1723537862292,-500.0,0.00014794,2]
[334765575,1723537862305,-500.0,0.00014794,2]
[334765577,1723537862315,-514.93,0.00014794,2]
[334765579,1723537862327,-1273.33,0.00014794,2]
[334765581,1723537862339,-500.0,0.00014794,2]
[334765583,1723537862349,-500.0,0.00014794,2]
[334765585,1723537862359,-1201.39,0.00014794,2]
[334765587,1723537862368,-500.0,0.00014794,2]
[334765589,1723537862379,-500.0,0.00014794,2]
[334765591,1723537862388,-500.0,0.00014794,2]
[334765593,1723537862397,-830.32,0.00014794,2]
[334765595,1723537862406,-500.0,0.00014794,2]
[334765597,1723537862415,-545.21,0.00014794,2]
[334765599,1723537862425,-1884.12,0.00014794,2]
[334765601,1723537862434,-500.0,0.00014794,2]
[334765614,1723537862551,-743.92,0.00014794,2]
[334765617,1723537862561,-500.0,0.00014794,2]
[334765619,1723537862572,-824.42,0.00014794,2]
[334765621,1723537862581,-500.0,0.00014794,2]
[334765623,1723537862590,-500.0,0.00014794,2]
[334765625,1723537862600,-958.8,0.00014794,2]
[334765627,1723537862610,-500.0,0.00014794,2]
[334765629,1723537862620,-500.0,0.00014794,2]
[334765631,1723537862629,-625.11,0.00014794,2]
[334765633,1723537862639,-510.18680554,0.00014794,2]
[334765635,1723537862650,-995.56,0.00014794,2]
[334765637,1723537862659,-363.62833598,0.00014794,2]
[334765639,1723537862669,-500.0,0.00014794,2]
[334765641,1723537862679,-831.7,0.00014794,2]
[334765643,1723537862688,-919.48,0.00014794,2]
[334765645,1723537862698,-505.9154111,0.00014794,2]
[334765647,1723537862708,-500.0,0.00014794,2]
[334765649,1723537862717,-680.9,0.00014794,2]
[334765651,1723537862727,-500.0,0.00014794,2]
[334765653,1723537862738,-702.43,0.00014794,2]
[334765656,1723537862748,-500.0,0.00014794,2]
[334765658,1723537862758,-809.2,0.00014794,2]
[334765660,1723537862768,-500.0,0.00014794,2]
[334765662,1723537862777,-282.29595842,0.00014794,2]
[334765664,1723537862787,-539.99589051,0.00014794,2]
[334765666,1723537862797,-500.0,0.00014794,2]
[334765668,1723537862806,-4378.29,0.00014794,2]
[334765670,1723537862816,-463.29533031,0.00014794,2]
[334765672,1723537862828,-1134.62,0.00014794,2]
[334765674,1723537862838,-2261.14,0.00014794,2]
[334765676,1723537862847,-500.0,0.00014794,2]
[334765678,1723537862856,-1505.01,0.00014794,2]
[334765680,1723537862866,-500.0,0.00014794,2]
[334765682,1723537862876,-195.21056736,0.00014794,2]
[334765684,1723537862885,-639.48,0.00014794,2]
[334765686,1723537862894,-502.73182274,0.00014794,2]
[334765688,1723537862903,-1583.11,0.00014794,2]
[334765690,1723537862913,-917.9,0.00014794,2]
[334765692,1723537862923,-527.13,0.00014794,2]
[334765694,1723537862932,-1585.62,0.00014794,2]
[334765696,1723537862942,-454.6660517,0.00014794,2]
[334765698,1723537862952,-500.0,0.00014794,2]
[334765700,1723537862962,-976.77,0.00014794,2]
[334765702,1723537862972,-500.0,0.00014794,2]
[334765704,1723537862981,-1734.21,0.00014794,2]
[334765706,1723537862991,-500.0,0.00014794,2]
[334765708,1723537863000,-500.0,0.00014794,2]
[334765710,1723537863011,-1315.3,0.00014794,2]
[334765712,1723537863020,-500.0,0.00014794,2]
[334765714,1723537863030,-500.0,0.00014794,2]
[334765716,1723537863040,-500.0,0.00014794,2]
[334765718,1723537863050,-7367.39,0.00014794,2]
[334765721,1723537863061,-500.0,0.00014794,2]
[334765723,1723537863071,-595.3,0.00014794,2]
[334765725,1723537863081,-995.73,0.00014794,2]
[334765726,1723537863090,-1924.78,0.00014794,2]
[334765728,1723537863100,-2441.51,0.00014794,2]
[334765730,1723537863109,-507.57971785,0.00014794,2]
[334765732,1723537863118,-504.64,0.00014794,2]
[334765734,1723537863128,-500.0,0.00014794,2]
[334765736,1723537863138,-1026.0,0.00014794,2]
[334765738,1723537863147,-1372.19,0.00014794,2]
[334765741,1723537863158,-500.0,0.00014794,2]
[334765743,1723537863168,-825.12,0.00014794,2]
[334765745,1723537863178,-1218.76,0.00014794,2]
[334765747,1723537863187,-2009.64,0.00014794,2]
[334765749,1723537863197,-500.0,0.00014794,2]
[334765751,1723537863206,-5418.04,0.00014794,2]
[334765753,1723537863216,-666.76,0.00014794,2]
[334765755,1723537863225,-1515.4,0.00014794,2]
[334765757,1723537863234,-7239.45,0.00014794,2]
[334765759,1723537863244,-500.0,0.00014794,2]
[334765761,1723537863254,-1080.56,0.00014794,2]
[334765763,1723537863263,-1487.36,0.00014794,2]
[334765765,1723537863273,-770.77,0.00014794,2]
[334765767,1723537863283,-500.0,0.00014794,2]
[334765769,1723537863294,-3754.47,0.00014794,2]
[334765771,1723537863306,-500.0,0.00014794,2]
[334765773,1723537863315,-3930.98,0.00014794,2]
[334765775,1723537863325,-584.06,0.00014794,2]
[334765777,1723537863335,-1323.5,0.00014794,2]
[334765779,1723537863345,-500.0,0.00014794,2]
[334765781,1723537863355,-500.0,0.00014794,2]
[334765783,1723537863366,-500.0,0.00014794,2]
[334765785,1723537863379,-1224.27,0.00014794,2]
[334765787,1723537863389,-580.42,0.00014794,2]
[334765789,1723537863399,-882.99,0.00014794,2]
[334765791,1723537863408,-500.0,0.00014794,2]
[334765793,1723537863418,-1100.34,0.00014794,2]
[334765795,1723537863427,-4193.53,0.00014794,2]
[334765797,1723537863436,-523.39,0.00014794,2]
[334765799,1723537863446,-754.54,0.00014794,2]
[334765801,1723537863457,-533.66,0.00014794,2]
[334765803,1723537863466,-775.85,0.00014794,2]
[334765805,1723537863475,-569.0,0.00014794,2]
[334765807,1723537863485,-500.0,0.00014794,2]
[334765809,1723537863495,-1506.12,0.00014794,2]
[334765811,1723537863506,-1002.51,0.00014794,2]
[334765813,1723537863516,-500.0,0.00014794,2]
[334765815,1723537863525,-500.0,0.00014794,2]
[334765817,1723537863535,-497.95581423,0.00014794,2]
[334765819,1723537863544,-500.0,0.00014794,2]
[334765821,1723537863554,-500.0,0.00014794,2]
[334765823,1723537863563,-852.94,0.00014794,2]
[334765825,1723537863574,-500.0,0.00014794,2]
[334765827,1723537863583,-500.0,0.00014794,2]
[334765829,1723537863593,-500.0,0.00014853,2]
[334765831,1723537863602,-300.73108185,0.000149,2]
[334765833,1723537863612,-465.03059993,0.00014955,2]
[334765835,1723537863622,-154.98127653,0.00014999,2]
[334765837,1723537863633,-952.87596009,0.00015,2]
[334765839,1723537863642,-400.88642674,0.00015,2]
[334765841,1723537863652,-913.53413143,0.00015,2]
[334765843,1723537863661,-1110.12328868,0.00015,2]
[334765845,1723537863671,-2852.7407087,0.00015,2]
[334765847,1723537863680,-817.13111103,0.00015,2]
[334765849,1723537863690,-813.29801715,0.00015,2]
[334765851,1723537863699,-493.00364752,0.00015,2]
[334765853,1723537863709,-5241.59592518,0.00015,2]
[334765855,1723537863718,-460.04462709,0.00015,4]
[334765857,1723537863728,-154.89911116,0.00015,2]
[334765859,1723537863739,-400.0,0.00015042,2]
[334765861,1723537863749,-153.0,0.00015066,2]
[334765863,1723537863759,-153.0,0.00015066,2]
[334765865,1723537863769,-153.0,0.00015066,2]
[334765867,1723537863779,-153.0,0.00015066,2]
[334765869,1723537863788,-558.13731337,0.00015068,2]
[334765871,1723537863797,-500.0,0.00015068,2]
[334765873,1723537863806,-1385.23,0.00015068,2]
[334765875,1723537863816,-660.55,0.00015068,2]
[334765877,1723537863827,-500.0,0.00015068,2]
[334765879,1723537863837,-500.0,0.00015068,2]
[334765881,1723537863846,-500.0,0.00015068,2]
[334765883,1723537863856,-500.0,0.00015068,2]
[334765885,1723537863865,-500.0,0.00015068,2]
[334765887,1723537863875,-500.0,0.00015068,2]
[334765889,1723537863884,-1882.69,0.00015068,2]
[334765891,1723537863894,-500.0,0.00015068,2]
[334765893,1723537863904,-500.0,0.00015068,2]
[334765895,1723537863913,-531.46,0.00015068,2]
[334765897,1723537863923,-640.71,0.00015068,2]
[334765899,1723537863933,-500.0,0.00015068,2]
[334765901,1723537863943,-500.0,0.00015068,2]
[334765903,1723537863953,-500.0,0.00015068,2]
[334765905,1723537863962,-500.0,0.00015068,2]
[334765907,1723537863972,-500.0,0.00015068,2]
[334765909,1723537863982,-500.0,0.00015068,2]
[334765911,1723537863991,-500.0,0.00015068,2]
[334765913,1723537864001,-1230.34,0.00015068,2]
[334765916,1723537864011,-482.43252552,0.00015068,2]
[334765918,1723537864021,-737.09,0.00015068,2]
[334765920,1723537864031,-925.78,0.00015068,2]
[334765922,1723537864040,-564.05,0.00015068,2]
[334765924,1723537864051,-500.0,0.00015068,2]
[334765926,1723537864060,-500.0,0.00015068,2]
[334765928,1723537864072,-500.0,0.00015068,2]
[334765930,1723537864082,-500.0,0.00015068,2]
[334765932,1723537864092,-500.0,0.00015068,2]
[334765934,1723537864101,-546.14,0.00015068,2]
[334765936,1723537864111,-603.57,0.00015068,2]
[334765938,1723537864121,-500.0,0.00015068,2]
[334765940,1723537864131,-875.25,0.00015068,2]
[334765942,1723537864140,-500.0,0.00015068,2]
[334765944,1723537864150,-627.62,0.00015068,2]
[334765946,1723537864159,-500.0,0.00015068,2]
[334765948,1723537864169,-909.82,0.00015068,2]
[334765950,1723537864180,-860.2,0.00015068,2]
[334765952,1723537864189,-548.31,0.00015068,2]
[334765954,1723537864199,-656.8,0.00015068,2]
[334765956,1723537864208,-500.0,0.00015068,2]
[334765958,1723537864218,-797.5,0.00015068,2]
[334765960,1723537864228,-500.0,0.00015068,2]
[334765962,1723537864237,-500.0,0.00015068,2]
[334765964,1723537864247,-500.0,0.00015068,2]
[334765966,1723537864257,-500.0,0.00015068,2]
[334765968,1723537864266,-786.49,0.00015068,2]
[334765970,1723537864276,-500.0,0.00015068,2]
[334765971,1723537864285,-1273.33,0.00015068,2]
[334765973,1723537864294,-514.93,0.00015068,2]
[334765975,1723537864308,-500.0,0.00015068,2]
[334765977,1723537864318,-500.0,0.00015068,2]
[334765979,1723537864328,-1201.39,0.00015068,2]
[334765981,1723537864338,-500.0,0.00015068,2]
[334765984,1723537864349,-500.0,0.00015068,2]
[334765985,1723537864358,-500.0,0.00015068,2]
[334765987,1723537864368,-830.32,0.00015068,2]
[334765989,1723537864377,-500.0,0.00015068,2]
[334765991,1723537864390,-545.21,0.00015068,2]
[334765993,1723537864399,-1884.12,0.00015068,2]
[334765995,1723537864409,-500.0,0.00015068,2]
[334765997,1723537864418,-743.92,0.00015068,2]
[334766008,1723537864519,-500.0,0.00015068,2]
[334766011,1723537864529,-824.42,0.00015068,2]
[334766012,1723537864539,-500.0,0.00015068,2]
[334766015,1723537864549,-500.0,0.00015068,2]
[334766017,1723537864559,-958.8,0.00015068,2]
[334766019,1723537864569,-500.0,0.00015068,2]
[334766021,1723537864580,-500.0,0.00015068,2]
[334766023,1723537864590,-625.11,0.00015068,2]
[334766025,1723537864599,-995.56,0.00015068,2]
[334766027,1723537864609,-500.0,0.00015068,2]
[334766029,1723537864619,-831.7,0.00015068,2]
[334766031,1723537864628,-919.48,0.00015068,2]
[334766033,1723537864638,-506.80610397,0.00015068,2]
[334766035,1723537864647,-680.9,0.00015068,2]
[334766036,1723537864656,-500.0,0.00015068,2]
[334766039,1723537864667,-702.43,0.00015068,2]
[334766041,1723537864677,-500.0,0.00015068,2]
[334766043,1723537864687,-809.2,0.00015068,2]
[334766045,1723537864697,-500.0,0.00015068,2]
[334766047,1723537864707,-500.0,0.00015068,2]
[334766049,1723537864717,-4378.29,0.00015068,2]
[334766051,1723537864727,-2261.14,0.00015068,2]
[334766053,1723537864737,-1134.62,0.00015068,2]
[334766055,1723537864747,-500.0,0.00015068,2]
[334766057,1723537864757,-1505.01,0.00015068,2]
[334766059,1723537864768,-500.0,0.00015068,2]
[334766061,1723537864777,-639.48,0.00015068,2]
[334766063,1723537864786,-1583.11,0.00015068,2]
[334766065,1723537864796,-917.9,0.00015068,2]
[334766066,1723537864805,-527.13,0.00015068,2]
[334766068,1723537864815,-1585.62,0.00015068,2]
[334766070,1723537864827,-500.0,0.00015068,2]
[334766072,1723537864842,-976.77,0.00015068,2]
[334766074,1723537864852,-500.0,0.00015068,2]
[334766076,1723537864863,-1734.21,0.00015068,2]
[334766078,1723537864873,-500.0,0.00015068,2]
[334766079,1723537864883,-506.11340311,0.00015068,2]
[334766081,1723537864894,-1315.3,0.00015068,2]
[334766083,1723537864903,-516.48352692,0.00015068,2]
[334766085,1723537864914,-500.0,0.00015068,2]
[334766087,1723537864924,-500.0,0.00015068,2]
[334766089,1723537864934,-7367.39,0.00015068,2]
[334766091,1723537864944,-559.51236382,0.00015068,2]
[334766093,1723537864954,-595.3,0.00015068,2]
[334766095,1723537864964,-995.73,0.00015068,2]
[334766097,1723537864974,-1924.78,0.00015068,2]
[334766099,1723537864984,-2441.51,0.00015068,2]
[334766101,1723537864994,-504.64,0.00015068,2]
[334766103,1723537865005,-500.0,0.00015068,2]
[334766105,1723537865015,-1026.0,0.00015068,2]
[334766107,1723537865025,-1372.19,0.00015068,2]
[334766109,1723537865035,-500.0,0.00015068,2]
[334766111,1723537865044,-825.12,0.00015068,2]
[334766113,1723537865054,-1218.76,0.00015068,2]
[334766115,1723537865064,-2009.64,0.00015068,2]
[334766117,1723537865082,-470.64764857,0.00015068,2]
[334766119,1723537865092,-5418.04,0.00015068,2]
[334766121,1723537865102,-666.76,0.00015068,2]
[334766123,1723537865111,-1515.4,0.00015068,2]
[334766125,1723537865120,-7239.45,0.00015068,2]
[334766127,1723537865130,-500.0,0.00015068,2]
[334766129,1723537865140,-1080.56,0.00015068,2]
[334766131,1723537865150,-1487.36,0.00015068,2]
[334766133,1723537865160,-770.77,0.00015068,2]
[334766134,1723537865172,-500.0,0.00015068,2]
[334766135,1723537865182,-3754.47,0.00015068,2]
[334766136,1723537865192,-500.0,0.00015068,2]
[334766137,1723537865201,-3930.98,0.00015068,2]
[334766138,1723537865210,-584.06,0.00015068,2]
[334766139,1723537865219,-1323.5,0.00015068,2]
[334766140,1723537865229,-500.0,0.00015068,2]
[334766141,1723537865239,-500.0,0.00015068,2]
[334766142,1723537865248,-607.99166983,0.00015068,2]
[334766143,1723537865258,-1224.27,0.00015068,2]
[334766144,1723537865267,-580.42,0.00015068,2]
[334766145,1723537865278,-882.99,0.00015068,2]
[334766146,1723537865288,-500.0,0.00015068,2]
[334766147,1723537865300,-1100.34,0.00015068,2]
[334766148,1723537865312,-4193.53,0.00015068,2]
[334766149,1723537865326,-523.39,0.00015068,2]
[334766150,1723537865335,-754.54,0.00015068,2]
[334766152,1723537865346,-533.66,0.00015068,2]
[334766154,1723537865355,-775.85,0.00015068,2]
[334766156,1723537865365,-569.0,0.00015068,2]
[334766158,1723537865377,-500.0,0.00015068,2]
[334766160,1723537865387,-1506.12,0.00015068,2]
[334766162,1723537865397,-1002.51,0.00015068,2]
[334766164,1723537865407,-500.0,0.00015068,2]
[334766166,1723537865416,-500.0,0.00015068,2]
[334766168,1723537865426,-160.41819334,0.00015068,2]